[Event "Early-Titled-Tuesday-Blitz-May-14-2024"]
[Site "Chess.com"]
[Date "2024.05.14"]
[Round "11"]
[White "Casablanca"]
[Black "ATM622"]
[Result "1-0"]
[WhiteElo "2705"]
[BlackElo "2535"]
[TimeControl "180+1"]
[EndTime "10:08:18 PDT"]
[Termination "Casablanca won by checkmate"]

1. e4 {[%clk 0:03:00.9]} 1... c6 {[%clk 0:03:00]} 2. d4 {[%clk 0:03:00.6]} 2...
d5 {[%clk 0:03:00.8]} 3. exd5 {[%clk 0:03:01.5]} 3... cxd5 {[%clk 0:03:00.6]} 4.
Nf3 {[%clk 0:03:02.4]} 4... Nc6 {[%clk 0:03:00.4]} 5. c3 {[%clk 0:03:03.3]} 5...
Nf6 {[%clk 0:03:00.8]} 6. Be2 {[%clk 0:03:03.1]} 6... g6 {[%clk 0:02:59.2]} 7.
O-O {[%clk 0:03:04]} 7... Bg7 {[%clk 0:02:59.3]} 8. Bf4 {[%clk 0:03:02.5]} 8...
O-O {[%clk 0:02:59.2]} 9. Ne5 {[%clk 0:03:02.2]} 9... Be6 {[%clk 0:02:51.5]} 10.
Nxc6 {[%clk 0:02:56.1]} 10... bxc6 {[%clk 0:02:52.4]} 11. Nd2 {[%clk 0:02:55.6]}
11... Re8 {[%clk 0:02:47.1]} 12. Be5 {[%clk 0:02:55.5]} 12... Bf5 {[%clk
0:02:40.4]} 13. Nb3 {[%clk 0:02:53]} 13... Qb6 {[%clk 0:02:34.6]} 14. Bd3 {[%clk
0:02:42.3]} 14... Bxd3 {[%clk 0:02:24]} 15. Qxd3 {[%clk 0:02:43.2]} 15... Ne4
{[%clk 0:02:11.2]} 16. Bxg7 {[%clk 0:02:44.1]} 16... Kxg7 {[%clk 0:02:11.7]} 17.
f3 {[%clk 0:02:37.4]} 17... Nf6 {[%clk 0:02:07.5]} 18. Rfe1 {[%clk 0:02:16.7]}
18... e5 {[%clk 0:02:07.7]} 19. Kh1 {[%clk 0:02:09.2]} 19... e4 {[%clk
0:02:07.8]} 20. fxe4 {[%clk 0:02:09.2]} 20... Nxe4 {[%clk 0:02:08.1]} 21. Rf1
{[%clk 0:02:09.3]} 21... a5 {[%clk 0:01:57.2]} 22. Qc2 {[%clk 0:02:08.8]} 22...
Rab8 {[%clk 0:01:55.5]} 23. Rab1 {[%clk 0:02:08.3]} 23... Qb5 {[%clk 0:01:37.7]}
24. Rfe1 {[%clk 0:01:32.1]} 24... a4 {[%clk 0:01:28.1]} 25. Nd2 {[%clk
0:01:30.8]} 25... Nf2+ {[%clk 0:01:16.5]} 26. Kg1 {[%clk 0:01:29.3]} 26... Rxe1+
{[%clk 0:01:13.7]} 27. Rxe1 {[%clk 0:01:30.2]} 27... Nd3 {[%clk 0:01:14]} 28.
Rb1 {[%clk 0:01:18.5]} 28... Nxb2 {[%clk 0:01:10.1]} 29. a3 {[%clk 0:01:15.8]}
29... c5 {[%clk 0:00:40.3]} 30. h4 {[%clk 0:01:09.8]} 30... Qb6 {[%clk
0:00:18.5]} 31. Nf3 {[%clk 0:00:57.8]} 31... Qb3 {[%clk 0:00:17.3]} 32. Qe2
{[%clk 0:00:54.7]} 32... cxd4 {[%clk 0:00:07.6]} 33. cxd4 {[%clk 0:00:50.4]}
33... Rb6 {[%clk 0:00:04.8]} 34. h5 {[%clk 0:00:48.3]} 34... Qxa3 {[%clk
0:00:03.3]} 35. Qe5+ {[%clk 0:00:47.1]} 35... f6 {[%clk 0:00:03.6]} 36. Qc7+
{[%clk 0:00:41]} 36... Kh6 {[%clk 0:00:03.9]} 37. Qxb6 {[%clk 0:00:36.1]} 37...
Qe3+ {[%clk 0:00:03.8]} 38. Kh1 {[%clk 0:00:32.4]} 38... Nd3 {[%clk 0:00:03.9]}
39. Rf1 {[%clk 0:00:28.6]} 39... a3 {[%clk 0:00:03.2]} 40. Qxf6 {[%clk
0:00:26.2]} 40... a2 {[%clk 0:00:03.3]} 41. Qf8+ {[%clk 0:00:23.6]} 41... Kxh5
{[%clk 0:00:02.9]} 42. Qa8 {[%clk 0:00:19.5]} 42... Nf2+ {[%clk 0:00:02.6]} 43.
Kh2 {[%clk 0:00:17.2]} 43... Ng4+ {[%clk 0:00:02.6]} 44. Kg3 {[%clk 0:00:15.2]}
44... Kh6 {[%clk 0:00:01.9]} 45. Qf8+ {[%clk 0:00:08.3]} 45... Kh5 {[%clk
0:00:01.9]} 46. Rh1+ {[%clk 0:00:09]} 46... Nh2 {[%clk 0:00:01.6]} 47. Rxh2#
{[%clk 0:00:09.3]} 1-0

[Event "Early-Titled-Tuesday-Blitz-May-14-2024"]
[Site "Chess.com"]
[Date "2024.05.14"]
[Round "11"]
[White "Guldona_2007"]
[Black "rhwr"]
[Result "0-1"]
[WhiteElo "2196"]
[BlackElo "2326"]
[TimeControl "180+1"]
[EndTime "10:08:19 PDT"]
[Termination "rhwr won on time"]

1. e4 {[%clk 0:02:59]} 1... c5 {[%clk 0:02:58.8]} 2. Nf3 {[%clk 0:02:58.4]} 2...
d6 {[%clk 0:02:59.3]} 3. d4 {[%clk 0:02:58.3]} 3... cxd4 {[%clk 0:02:59.9]} 4.
Nxd4 {[%clk 0:02:58.8]} 4... Nf6 {[%clk 0:03:00.5]} 5. Nc3 {[%clk 0:02:59]} 5...
e5 {[%clk 0:03:01]} 6. Ndb5 {[%clk 0:02:58.2]} 6... a6 {[%clk 0:02:59.8]} 7. Na3
{[%clk 0:02:57.9]} 7... b5 {[%clk 0:03:00.1]} 8. Nd5 {[%clk 0:02:53]} 8... Bb7
{[%clk 0:02:57.2]} 9. Bg5 {[%clk 0:02:50.1]} 9... Be7 {[%clk 0:02:56.6]} 10.
Nxe7 {[%clk 0:02:41.7]} 10... Qxe7 {[%clk 0:02:56.3]} 11. Bd3 {[%clk 0:02:35.7]}
11... h6 {[%clk 0:02:55]} 12. Bxf6 {[%clk 0:02:35.4]} 12... Qxf6 {[%clk
0:02:54.6]} 13. c4 {[%clk 0:02:29.7]} 13... b4 {[%clk 0:02:43.5]} 14. Nc2 {[%clk
0:02:27.4]} 14... Nc6 {[%clk 0:02:44]} 15. O-O {[%clk 0:02:17.2]} 15... O-O
{[%clk 0:02:43.9]} 16. Qd2 {[%clk 0:02:15.8]} 16... a5 {[%clk 0:02:42.7]} 17.
Ne3 {[%clk 0:02:14.6]} 17... Nd4 {[%clk 0:02:37.9]} 18. Nd5 {[%clk 0:02:12.1]}
18... Bxd5 {[%clk 0:02:37.8]} 19. exd5 {[%clk 0:02:03.3]} 19... Qe7 {[%clk
0:02:27.7]} 20. f4 {[%clk 0:02:00.2]} 20... f5 {[%clk 0:01:55]} 21. Rae1 {[%clk
0:01:48.5]} 21... Qa7 {[%clk 0:01:53.8]} 22. Kh1 {[%clk 0:01:39.3]} 22... Rae8
{[%clk 0:01:33]} 23. Bb1 {[%clk 0:01:25.3]} 23... b3 {[%clk 0:01:25.6]} 24. a3
{[%clk 0:01:22.4]} 24... Qc5 {[%clk 0:01:24.9]} 25. Qc3 {[%clk 0:01:13.1]} 25...
a4 {[%clk 0:01:24.5]} 26. Qd3 {[%clk 0:00:37.5]} 26... exf4 {[%clk 0:00:57.4]}
27. Rxe8 {[%clk 0:00:36.9]} 27... Rxe8 {[%clk 0:00:57.6]} 28. Rxf4 {[%clk
0:00:30.5]} 28... Re1+ {[%clk 0:00:48.4]} 29. Rf1 {[%clk 0:00:29.5]} 29... Rxf1+
{[%clk 0:00:44.9]} 30. Qxf1 {[%clk 0:00:29.2]} 30... Nc2 {[%clk 0:00:44.1]} 31.
Qxf5 {[%clk 0:00:17.2]} 31... Qe3 {[%clk 0:00:34.8]} 32. Qf1 {[%clk 0:00:06.8]}
32... Qd2 {[%clk 0:00:21.1]} 33. h3 {[%clk 0:00:03.8]} 33... Qd4 {[%clk
0:00:07.7]} 34. Qc1 {[%clk 0:00:01.5]} 34... Qxc4 {[%clk 0:00:04.3]} 35. Qd2
{[%clk 0:00:01.6]} 35... Qf1+ {[%clk 0:00:02.4]} 36. Kh2 {[%clk 0:00:01.3]}
36... Qxb1 {[%clk 0:00:02.8]} 0-1

[Event "Early-Titled-Tuesday-Blitz-May-14-2024"]
[Site "Chess.com"]
[Date "2024.05.14"]
[Round "11"]
[White "ChEsper99"]
[Black "aljado"]
[Result "1-0"]
[WhiteElo "2255"]
[BlackElo "2123"]
[TimeControl "180+1"]
[EndTime "10:08:20 PDT"]
[Termination "ChEsper99 won on time"]

1. Nf3 {[%clk 0:02:59.1]} 1... Nf6 {[%clk 0:02:58.8]} 2. d4 {[%clk 0:02:58.5]}
2... g6 {[%clk 0:02:57.1]} 3. Bf4 {[%clk 0:02:58.8]} 3... Bg7 {[%clk 0:02:55.7]}
4. e3 {[%clk 0:02:59.2]} 4... d6 {[%clk 0:02:55.8]} 5. c3 {[%clk 0:02:59.2]}
5... O-O {[%clk 0:02:55.5]} 6. Nbd2 {[%clk 0:02:59.6]} 6... b6 {[%clk
0:02:55.8]} 7. Be2 {[%clk 0:02:55.8]} 7... Bb7 {[%clk 0:02:55.9]} 8. O-O {[%clk
0:02:56.3]} 8... Nbd7 {[%clk 0:02:53.7]} 9. a4 {[%clk 0:02:55.8]} 9... c5 {[%clk
0:02:53.3]} 10. Re1 {[%clk 0:02:55.3]} 10... Re8 {[%clk 0:02:51.7]} 11. Bf1
{[%clk 0:02:55.6]} 11... e5 {[%clk 0:02:50.3]} 12. dxe5 {[%clk 0:02:53.7]} 12...
dxe5 {[%clk 0:02:49.3]} 13. Bg3 {[%clk 0:02:52.4]} 13... Nh5 {[%clk 0:02:48.3]}
14. e4 {[%clk 0:02:48.7]} 14... Nxg3 {[%clk 0:02:47]} 15. hxg3 {[%clk
0:02:49.6]} 15... Nf6 {[%clk 0:02:43.2]} 16. a5 {[%clk 0:02:47.7]} 16... Qe7
{[%clk 0:02:31.1]} 17. Qb3 {[%clk 0:02:44.8]} 17... Qc7 {[%clk 0:02:20.8]} 18.
Bc4 {[%clk 0:02:27.9]} 18... Rad8 {[%clk 0:02:08.8]} 19. axb6 {[%clk 0:02:25.7]}
19... axb6 {[%clk 0:02:07.7]} 20. Ra7 {[%clk 0:02:24.9]} 20... Re7 {[%clk
0:01:52.7]} 21. Ba6 {[%clk 0:02:07.3]} 21... Qb8 {[%clk 0:01:50.6]} 22. Rxb7
{[%clk 0:02:07.7]} 22... Rxb7 {[%clk 0:01:48.6]} 23. Bxb7 {[%clk 0:02:08.2]}
23... Qxb7 {[%clk 0:01:48.5]} 24. Qb5 {[%clk 0:01:38.3]} 24... h5 {[%clk
0:01:16.7]} 25. Re2 {[%clk 0:00:39.7]} 25... Bh6 {[%clk 0:01:12.1]} 26. Nc4
{[%clk 0:00:30.7]} 26... Nxe4 {[%clk 0:01:02.8]} 27. Qxb6 {[%clk 0:00:26.6]}
27... Qxb6 {[%clk 0:01:01]} 28. Nxb6 {[%clk 0:00:27.5]} 28... Rd1+ {[%clk
0:00:48]} 29. Re1 {[%clk 0:00:22.2]} 29... Rxe1+ {[%clk 0:00:29.1]} 30. Nxe1
{[%clk 0:00:23.1]} 30... Nd2 {[%clk 0:00:28.5]} 31. Nd3 {[%clk 0:00:20.1]} 31...
e4 {[%clk 0:00:25.5]} 32. Nf4 {[%clk 0:00:09.8]} 32... Kf8 {[%clk 0:00:12.1]}
33. Nd7+ {[%clk 0:00:08.6]} 33... Ke7 {[%clk 0:00:11.2]} 34. Nxc5 {[%clk
0:00:09.5]} 34... Nc4 {[%clk 0:00:10.4]} 35. b4 {[%clk 0:00:07.3]} 35... Kd6
{[%clk 0:00:08.8]} 36. Nxe4+ {[%clk 0:00:07.2]} 36... Ke5 {[%clk 0:00:07.7]} 37.
Nc5 {[%clk 0:00:05.9]} 37... Kd6 {[%clk 0:00:06.5]} 38. Ncd3 {[%clk 0:00:05.4]}
38... Ne5 {[%clk 0:00:05.2]} 39. Nxe5 {[%clk 0:00:05.1]} 39... Kxe5 {[%clk
0:00:05.7]} 40. Kf1 {[%clk 0:00:04.6]} 40... g5 {[%clk 0:00:02.4]} 41. Nxh5
{[%clk 0:00:04]} 41... f5 {[%clk 0:00:00.2]} 42. Ke2 {[%clk 0:00:04.1]} 1-0

[Event "Early-Titled-Tuesday-Blitz-May-14-2024"]
[Site "Chess.com"]
[Date "2024.05.14"]
[Round "11"]
[White "valik3504"]
[Black "Meri-Arabidze"]
[Result "1-0"]
[WhiteElo "2580"]
[BlackElo "2699"]
[TimeControl "180+1"]
[EndTime "10:08:21 PDT"]
[Termination "valik3504 won on time"]

1. Nf3 {[%clk 0:02:35.5]} 1... c5 {[%clk 0:02:59]} 2. c4 {[%clk 0:02:35.5]} 2...
Nf6 {[%clk 0:02:58.8]} 3. Nc3 {[%clk 0:02:35.1]} 3... g6 {[%clk 0:02:59]} 4. d4
{[%clk 0:02:35.6]} 4... cxd4 {[%clk 0:02:58.9]} 5. Nxd4 {[%clk 0:02:36.5]} 5...
Bg7 {[%clk 0:02:59.5]} 6. e4 {[%clk 0:02:37.2]} 6... d6 {[%clk 0:02:58.4]} 7.
Be2 {[%clk 0:02:37.6]} 7... O-O {[%clk 0:02:59.1]} 8. Be3 {[%clk 0:02:38]} 8...
Nc6 {[%clk 0:02:53]} 9. O-O {[%clk 0:02:38.3]} 9... a5 {[%clk 0:02:50.4]} 10.
Ndb5 {[%clk 0:02:32.7]} 10... Be6 {[%clk 0:02:45.4]} 11. Rc1 {[%clk 0:02:27.9]}
11... Ne5 {[%clk 0:02:36.1]} 12. b3 {[%clk 0:02:12.8]} 12... Nfd7 {[%clk
0:02:31]} 13. f4 {[%clk 0:02:00.2]} 13... Nc6 {[%clk 0:02:30.9]} 14. f5 {[%clk
0:02:00.5]} 14... Nde5 {[%clk 0:02:23.6]} 15. fxe6 {[%clk 0:01:58.9]} 15... fxe6
{[%clk 0:02:24.5]} 16. Rxf8+ {[%clk 0:01:55.9]} 16... Bxf8 {[%clk 0:02:24.3]}
17. Bg4 {[%clk 0:01:50.1]} 17... Qd7 {[%clk 0:02:14.4]} 18. Bh3 {[%clk
0:01:47.3]} 18... Nb4 {[%clk 0:02:02]} 19. Na4 {[%clk 0:01:38.5]} 19... Ra6
{[%clk 0:01:20.2]} 20. Nb6 {[%clk 0:01:24.5]} 20... Qc6 {[%clk 0:01:20.4]} 21.
Bxe6+ {[%clk 0:01:23.5]} 21... Kg7 {[%clk 0:01:20.3]} 22. Nd4 {[%clk 0:00:57]}
22... Qe8 {[%clk 0:01:16.2]} 23. Nd5 {[%clk 0:00:55.9]} 23... Nbd3 {[%clk
0:01:11.1]} 24. Nc7 {[%clk 0:00:50.7]} 24... Qd8 {[%clk 0:01:08.2]} 25. Nxa6
{[%clk 0:00:50.2]} 25... Nxc1 {[%clk 0:01:05.8]} 26. Bd5 {[%clk 0:00:33.9]}
26... Kh8 {[%clk 0:00:47.5]} 27. Qxc1 {[%clk 0:00:29.5]} 27... bxa6 {[%clk
0:00:46.8]} 28. Ne6 {[%clk 0:00:30]} 28... Qc8 {[%clk 0:00:47.1]} 29. Qf1 {[%clk
0:00:22.2]} 29... Bg7 {[%clk 0:00:40.8]} 30. Kh1 {[%clk 0:00:22.2]} 30... Bf6
{[%clk 0:00:40.3]} 31. h3 {[%clk 0:00:21.5]} 31... a4 {[%clk 0:00:29]} 32. Qe1
{[%clk 0:00:18]} 32... axb3 {[%clk 0:00:26.7]} 33. axb3 {[%clk 0:00:18.9]} 33...
Qb8 {[%clk 0:00:26.3]} 34. Qa5 {[%clk 0:00:18.9]} 34... h5 {[%clk 0:00:14.4]}
35. Qd8+ {[%clk 0:00:18.6]} 35... Qxd8 {[%clk 0:00:14.5]} 36. Nxd8 {[%clk
0:00:19.5]} 36... Nd3 {[%clk 0:00:14.4]} 37. Ne6 {[%clk 0:00:17.6]} 37... Kh7
{[%clk 0:00:09.3]} 38. c5 {[%clk 0:00:13.8]} 38... dxc5 {[%clk 0:00:08]} 39.
Nxc5 {[%clk 0:00:14.4]} 39... Nb4 {[%clk 0:00:04]} 40. Bd2 {[%clk 0:00:13]}
40... Nxd5 {[%clk 0:00:01.9]} 41. exd5 {[%clk 0:00:13]} 41... Bd4 {[%clk
0:00:02.3]} 42. Ne6 {[%clk 0:00:13]} 42... Be5 {[%clk 0:00:02.3]} 43. Nc5 {[%clk
0:00:13.1]} 43... a5 {[%clk 0:00:01.6]} 44. Bxa5 {[%clk 0:00:12.9]} 44... Bd6
{[%clk 0:00:01.4]} 45. Ne6 {[%clk 0:00:12.2]} 45... h4 {[%clk 0:00:01.1]} 46. b4
{[%clk 0:00:12.7]} 1-0

[Event "Early-Titled-Tuesday-Blitz-May-14-2024"]
[Site "Chess.com"]
[Date "2024.05.14"]
[Round "11"]
[White "Djager97"]
[Black "laiciffOneslraCsungaM"]
[Result "1-0"]
[WhiteElo "2541"]
[BlackElo "2417"]
[TimeControl "180+1"]
[EndTime "10:08:22 PDT"]
[Termination "Djager97 won on time"]

1. e4 {[%clk 0:03:00.9]} 1... e6 {[%clk 0:02:57.3]} 2. d4 {[%clk 0:03:00.6]}
2... d5 {[%clk 0:02:55.6]} 3. Nd2 {[%clk 0:03:00.3]} 3... c5 {[%clk 0:02:55.3]}
4. exd5 {[%clk 0:02:59.7]} 4... Qxd5 {[%clk 0:02:56.2]} 5. Ngf3 {[%clk
0:02:58.7]} 5... cxd4 {[%clk 0:02:53.4]} 6. Bc4 {[%clk 0:02:59.2]} 6... Qd6
{[%clk 0:02:23.4]} 7. O-O {[%clk 0:02:58.1]} 7... Nf6 {[%clk 0:02:20.9]} 8. Nb3
{[%clk 0:02:58.4]} 8... Nc6 {[%clk 0:02:16.9]} 9. Nbxd4 {[%clk 0:02:58.7]} 9...
Nxd4 {[%clk 0:02:17.4]} 10. Qxd4 {[%clk 0:02:59.6]} 10... Qxd4 {[%clk
0:02:10.8]} 11. Nxd4 {[%clk 0:03:00.5]} 11... Bc5 {[%clk 0:02:10.7]} 12. Nb5
{[%clk 0:02:58.4]} 12... O-O {[%clk 0:01:53.3]} 13. Nc7 {[%clk 0:02:52.9]} 13...
Rb8 {[%clk 0:01:49.9]} 14. Bf4 {[%clk 0:02:53.8]} 14... Nh5 {[%clk 0:01:46.7]}
15. Be5 {[%clk 0:02:27.4]} 15... Bd7 {[%clk 0:01:26]} 16. Rad1 {[%clk
0:02:18.6]} 16... Bc6 {[%clk 0:01:24.8]} 17. Nxe6 {[%clk 0:01:59.4]} 17... fxe6
{[%clk 0:01:22.5]} 18. Bxe6+ {[%clk 0:01:59.1]} 18... Kh8 {[%clk 0:01:22.9]} 19.
Bxb8 {[%clk 0:01:59.8]} 19... Rxb8 {[%clk 0:01:22.3]} 20. Bd5 {[%clk 0:01:57.9]}
20... Nf6 {[%clk 0:01:14.2]} 21. Bxc6 {[%clk 0:01:57.5]} 21... bxc6 {[%clk
0:01:14.9]} 22. b3 {[%clk 0:01:48.2]} 22... h6 {[%clk 0:01:14.7]} 23. g3 {[%clk
0:01:44.6]} 23... Rf8 {[%clk 0:01:12.6]} 24. Kg2 {[%clk 0:01:41.6]} 24... Ne4
{[%clk 0:01:12.1]} 25. f3 {[%clk 0:01:40.1]} 25... Nc3 {[%clk 0:01:11.8]} 26.
Rd7 {[%clk 0:01:36.9]} 26... Nxa2 {[%clk 0:01:07.1]} 27. Re1 {[%clk 0:01:24.6]}
27... Nb4 {[%clk 0:01:03.6]} 28. c4 {[%clk 0:01:04.7]} 28... Nc2 {[%clk
0:01:00]} 29. Re6 {[%clk 0:00:44.4]} 29... Ne3+ {[%clk 0:00:57.2]} 30. Kh3
{[%clk 0:00:37.9]} 30... Rf5 {[%clk 0:00:52.7]} 31. Kh4 {[%clk 0:00:19.1]} 31...
Rxf3 {[%clk 0:00:14.5]} 32. Rxc6 {[%clk 0:00:17.4]} 32... Bf8 {[%clk 0:00:15.1]}
33. Rc8 {[%clk 0:00:15.8]} 33... Kg8 {[%clk 0:00:15.6]} 34. Rxa7 {[%clk
0:00:15.1]} 34... Nf5+ {[%clk 0:00:13.6]} 35. Kg4 {[%clk 0:00:14.9]} 35... Nd4
{[%clk 0:00:12.1]} 36. b4 {[%clk 0:00:13.1]} 36... Rf6 {[%clk 0:00:07.5]} 37. b5
{[%clk 0:00:12.7]} 37... Kh7 {[%clk 0:00:07.7]} 38. Rb7 {[%clk 0:00:10.2]} 38...
h5+ {[%clk 0:00:06.7]} 39. Kh3 {[%clk 0:00:08.5]} 39... Rf2 {[%clk 0:00:04.6]}
40. c5 {[%clk 0:00:08.2]} 40... Nf3 {[%clk 0:00:05.1]} 41. g4 {[%clk 0:00:07.4]}
41... h4 {[%clk 0:00:03.4]} 42. g5 {[%clk 0:00:07.2]} 42... Rxh2+ {[%clk
0:00:02.8]} 43. Kg4 {[%clk 0:00:07.3]} 43... Ne5+ {[%clk 0:00:02.2]} 44. Kf5
{[%clk 0:00:07.7]} 44... Nd3 {[%clk 0:00:00.1]} 45. g6+ {[%clk 0:00:08]} 1-0

[Event "Early-Titled-Tuesday-Blitz-May-14-2024"]
[Site "Chess.com"]
[Date "2024.05.14"]
[Round "11"]
[White "lucasmito"]
[Black "Shushik"]
[Result "0-1"]
[WhiteElo "2696"]
[BlackElo "2555"]
[TimeControl "180+1"]
[EndTime "10:08:24 PDT"]
[Termination "Shushik won by checkmate"]

1. e4 {[%clk 0:03:00.9]} 1... c5 {[%clk 0:02:59.8]} 2. Nf3 {[%clk 0:03:00.1]}
2... d6 {[%clk 0:03:00.5]} 3. d4 {[%clk 0:02:46.5]} 3... cxd4 {[%clk 0:03:01.4]}
4. Nxd4 {[%clk 0:02:46.2]} 4... Nf6 {[%clk 0:03:02]} 5. Nc3 {[%clk 0:02:46]}
5... a6 {[%clk 0:03:02.6]} 6. a3 {[%clk 0:02:43]} 6... e6 {[%clk 0:02:56.3]} 7.
g4 {[%clk 0:02:41.1]} 7... h6 {[%clk 0:02:55.6]} 8. h4 {[%clk 0:02:39]} 8... Nc6
{[%clk 0:02:53]} 9. Rg1 {[%clk 0:02:37.7]} 9... d5 {[%clk 0:02:44.7]} 10. exd5
{[%clk 0:02:36.5]} 10... Nxd5 {[%clk 0:02:43.7]} 11. Nxd5 {[%clk 0:02:36.9]}
11... Qxd5 {[%clk 0:02:43.5]} 12. Bg2 {[%clk 0:02:37.5]} 12... Qe5+ {[%clk
0:02:40.2]} 13. Be3 {[%clk 0:02:38.1]} 13... Bd7 {[%clk 0:02:34.5]} 14. Nxc6
{[%clk 0:02:25.8]} 14... Bxc6 {[%clk 0:02:32.2]} 15. Bxc6+ {[%clk 0:02:26.4]}
15... bxc6 {[%clk 0:02:32.6]} 16. Qd4 {[%clk 0:02:27.1]} 16... Qa5+ {[%clk
0:02:13.1]} 17. b4 {[%clk 0:02:23.9]} 17... Qc7 {[%clk 0:02:09.9]} 18. Rd1
{[%clk 0:02:18.9]} 18... e5 {[%clk 0:02:06.7]} 19. Qc4 {[%clk 0:02:12.3]} 19...
Be7 {[%clk 0:02:03.3]} 20. g5 {[%clk 0:02:12.7]} 20... hxg5 {[%clk 0:01:59.3]}
21. hxg5 {[%clk 0:02:13.6]} 21... g6 {[%clk 0:01:52.2]} 22. Ke2 {[%clk
0:02:09.6]} 22... Kf8 {[%clk 0:01:49.4]} 23. Rh1 {[%clk 0:02:00.9]} 23... Kg7
{[%clk 0:01:49]} 24. Rxh8 {[%clk 0:02:00.9]} 24... Rxh8 {[%clk 0:01:48.6]} 25.
Qxa6 {[%clk 0:02:01.5]} 25... Rh2 {[%clk 0:01:41.1]} 26. Qc4 {[%clk 0:01:51.5]}
26... Qc8 {[%clk 0:01:35.4]} 27. Qe4 {[%clk 0:01:46.7]} 27... Qe6 {[%clk
0:01:15.7]} 28. a4 {[%clk 0:01:43.9]} 28... Rh5 {[%clk 0:00:49.4]} 29. Rg1
{[%clk 0:01:33.8]} 29... Rh8 {[%clk 0:00:48.6]} 30. a5 {[%clk 0:01:33.2]} 30...
Rb8 {[%clk 0:00:46.3]} 31. Bd2 {[%clk 0:01:22.7]} 31... c5 {[%clk 0:00:44.5]}
32. c3 {[%clk 0:01:11.7]} 32... cxb4 {[%clk 0:00:44.6]} 33. cxb4 {[%clk
0:01:12.6]} 33... Rd8 {[%clk 0:00:41.2]} 34. Rb1 {[%clk 0:01:10]} 34... Rd4
{[%clk 0:00:39.9]} 35. Qf3 {[%clk 0:00:35.5]} 35... Qc4+ {[%clk 0:00:36.6]} 36.
Ke1 {[%clk 0:00:36.1]} 36... Re4+ {[%clk 0:00:32.6]} 37. Kd1 {[%clk 0:00:34.9]}
37... Rd4 {[%clk 0:00:23.7]} 38. Ke1 {[%clk 0:00:30.6]} 38... Qc2 {[%clk
0:00:23.1]} 39. Rd1 {[%clk 0:00:25.8]} 39... Bxb4 {[%clk 0:00:20.6]} 40. Bxb4
{[%clk 0:00:25.9]} 40... Rxb4 {[%clk 0:00:20.8]} 41. Qd3 {[%clk 0:00:21]} 41...
Qc6 {[%clk 0:00:20.3]} 42. Qd5 {[%clk 0:00:20.3]} 42... Qc3+ {[%clk 0:00:17.6]}
43. Kf1 {[%clk 0:00:20.4]} 43... Rh4 {[%clk 0:00:14.1]} 44. Rb1 {[%clk
0:00:16.8]} 44... Qh3+ {[%clk 0:00:10.8]} 45. Ke2 {[%clk 0:00:13.5]} 45... Qg4+
{[%clk 0:00:10.9]} 46. Kf1 {[%clk 0:00:12.6]} 46... Qxg5 {[%clk 0:00:09.6]} 47.
Rb7 {[%clk 0:00:10.9]} 47... Qc1+ {[%clk 0:00:08.7]} 48. Ke2 {[%clk 0:00:11.4]}
48... Qc2+ {[%clk 0:00:08.3]} 49. Kf3 {[%clk 0:00:10.2]} 49... Rf4+ {[%clk
0:00:08]} 50. Kg3 {[%clk 0:00:10]} 50... Qxf2+ {[%clk 0:00:08.1]} 51. Kh3 {[%clk
0:00:10.7]} 51... Rh4# {[%clk 0:00:08.4]} 0-1

[Event "Early-Titled-Tuesday-Blitz-May-14-2024"]
[Site "Chess.com"]
[Date "2024.05.14"]
[Round "11"]
[White "Happy1712Drummer"]
[Black "Vasily_IM"]
[Result "1-0"]
[WhiteElo "2458"]
[BlackElo "2578"]
[TimeControl "180+1"]
[EndTime "10:08:24 PDT"]
[Termination "Happy1712Drummer won by resignation"]

1. e4 {[%clk 0:03:00.9]} 1... e5 {[%clk 0:02:59.2]} 2. Nf3 {[%clk 0:03:01]} 2...
Nf6 {[%clk 0:02:59]} 3. Nc3 {[%clk 0:03:01.1]} 3... d6 {[%clk 0:02:58.7]} 4. Bc4
{[%clk 0:02:58]} 4... Be7 {[%clk 0:02:58.2]} 5. O-O {[%clk 0:02:58.1]} 5... O-O
{[%clk 0:02:57.6]} 6. d4 {[%clk 0:02:56.4]} 6... Nbd7 {[%clk 0:02:57]} 7. a4
{[%clk 0:02:46.3]} 7... c6 {[%clk 0:02:56.1]} 8. Bg5 {[%clk 0:02:45.5]} 8... b6
{[%clk 0:02:54.7]} 9. Qe2 {[%clk 0:02:21.8]} 9... Re8 {[%clk 0:02:49.1]} 10. d5
{[%clk 0:02:20.5]} 10... cxd5 {[%clk 0:02:47.8]} 11. Nxd5 {[%clk 0:02:00]} 11...
Nxd5 {[%clk 0:02:47.1]} 12. Bxd5 {[%clk 0:02:00.3]} 12... Rb8 {[%clk 0:02:46.9]}
13. Bxe7 {[%clk 0:01:59.4]} 13... Qxe7 {[%clk 0:02:45.8]} 14. Rfd1 {[%clk
0:01:59.7]} 14... Nf6 {[%clk 0:02:45.1]} 15. Bc6 {[%clk 0:01:46.5]} 15... Rd8
{[%clk 0:02:43.5]} 16. Rd2 {[%clk 0:01:41.6]} 16... Bg4 {[%clk 0:02:41.2]} 17.
h3 {[%clk 0:01:35.1]} 17... Bh5 {[%clk 0:02:32.2]} 18. Rad1 {[%clk 0:01:32.6]}
18... Rbc8 {[%clk 0:02:24.7]} 19. Bb5 {[%clk 0:01:32.1]} 19... Bg6 {[%clk
0:02:17.2]} 20. Bd3 {[%clk 0:01:24]} 20... Nh5 {[%clk 0:02:14.3]} 21. g3 {[%clk
0:01:19.2]} 21... d5 {[%clk 0:02:02.5]} 22. exd5 {[%clk 0:01:07.1]} 22... e4
{[%clk 0:02:01.6]} 23. Ba6 {[%clk 0:00:58.2]} 23... Rc5 {[%clk 0:01:51.4]} 24.
Nh4 {[%clk 0:00:47]} 24... Nf4 {[%clk 0:01:43.2]} 25. gxf4 {[%clk 0:00:39]}
25... Qxh4 {[%clk 0:01:42.1]} 26. Qg4 {[%clk 0:00:39.4]} 26... Qf6 {[%clk
0:01:32.3]} 27. c4 {[%clk 0:00:32.4]} 27... h6 {[%clk 0:01:22.9]} 28. b4 {[%clk
0:00:30.4]} 28... Bf5 {[%clk 0:01:18]} 29. Qg3 {[%clk 0:00:28.5]} 29... Rc7
{[%clk 0:01:10.1]} 30. d6 {[%clk 0:00:28.4]} 30... Rcd7 {[%clk 0:01:06.8]} 31.
c5 {[%clk 0:00:28.4]} 31... bxc5 {[%clk 0:01:05.5]} 32. bxc5 {[%clk 0:00:29.3]}
32... Qe6 {[%clk 0:00:44.9]} 33. Bb5 {[%clk 0:00:21.1]} 33... Rb7 {[%clk
0:00:19.4]} 34. c6 {[%clk 0:00:20.2]} 34... Rb6 {[%clk 0:00:19.6]} 35. c7 {[%clk
0:00:12.4]} 35... Rdxd6 {[%clk 0:00:19.1]} 36. c8=Q+ {[%clk 0:00:04.5]} 36...
Qxc8 {[%clk 0:00:18.7]} 37. Rxd6 {[%clk 0:00:05]} 37... Rxd6 {[%clk 0:00:18.6]}
38. Rxd6 {[%clk 0:00:03.5]} 38... Qc1+ {[%clk 0:00:17.3]} 39. Kh2 {[%clk
0:00:03.7]} 39... e3 {[%clk 0:00:14.8]} 40. Qxe3 {[%clk 0:00:02.9]} 40... Qc2
{[%clk 0:00:07.4]} 41. Rd8+ {[%clk 0:00:03.5]} 41... Kh7 {[%clk 0:00:07.6]} 42.
Bd3 {[%clk 0:00:04.1]} 1-0